[Event "58th Akiba Rubinstein C 2022"]
[Site "Polanica-Zdroj"]
[Date "2022.08.15"]
[Round "3.6"]
[White "Chubar, Vladimir"]
[Black "Zowada, Kazimierz"]
[Result "0-1"]
[ECO "A40"]
[WhiteElo "1809"]
[BlackElo "2041"]
[Annotator "NA RC"]
[PlyCount "140"]
[EventDate "2022.08.13"]
[EventCountry "POL"]
[SourceTitle "playchess.com"]
[Source "ChessBase"]
[SourceQuality "1"]
[TimeControl "40/5400+30:1800+30"]

1. d4 {[%emt 0:03:06]} g6 {[%emt 0:00:12]} 2. Nf3 {[%emt 0:00:38]} Bg7 {[%emt 0:00:06]} 3. c3 {[%emt 0:00:19]} Nf6 {[%emt 0:00:25]} 4. Bg5 {[%emt 0:00:33]} d6 {[%emt 0:00:46]} 5. Nbd2 {[%emt 0:00:59]} Nbd7 {[%emt 0:00:32]} 6. e4 {[%emt 0:00:54]} h6 {[%emt 0:01:05]} 7. Bh4 {[%emt 0:00:27]} O-O {[%emt 0:00:55]} 8. Bc4 {[%emt 0:01:17]} e5 {[%emt 0:02:37]} 9. dxe5 {[%emt 0:01:41]} (9. O-O $14 {is superior.}) 9... Nxe5 {[%emt 0:00:41]} 10. Nxe5 {[%emt 0:01:14]} dxe5 {[%emt 0:00:08]} 11. O-O {[%emt 0:01:21]} g5 {[%emt 0:03:18]} 12. Bg3 {[%emt 0:02:11]} Qe7 {[%emt 0:00:15]} 13. Qe2 {[%emt 0:01:24]} Rd8 {[%emt 0:01:35]} 14. Rfd1 {[%emt 0:01:51]} a6 {[%emt 0:01:06]} 15. a4 $14 {[%emt 0:02:11]} (15. Nf1 $5 {[%cal Rd1d8]}) 15... Ne8 {[%emt 0:06:14]} 16. Nf1 {[%emt 0:10:56]} Nd6 {[%emt 0:01:12]} 17. Bb3 {[%emt 0:02:41]} Be6 {[%emt 0:00:36]} 18. Bxe6 {[%emt 0:02:07]} Qxe6 {[%emt 0:00:28]} 19. f3 {[%emt 0:05:02]} Nc4 {[%emt 0:03:31]} 20. Bf2 {[%emt 0:02:57]} Bf8 {[%emt 0:02:48]} 21. b3 {[%emt 0:02:41]} Na5 {[%emt 0:01:31]} 22. b4 {[%emt 0:00:16]} Nc4 {[%emt 0:00:25]} 23. Ng3 {[%emt 0:01:24]} a5 {[%emt 0:01:00]} 24. b5 {[%emt 0:03:35]} Kh7 {[%emt 0:02:20]} 25. Nf5 {[%emt 0:01:44]} c6 {[%emt 0:03:23]} 26. bxc6 {[%emt 0:04:42]} Qxc6 {[%emt 0:02:18]} 27. h4 {[%emt 0:02:17]} gxh4 {[%emt 0:07:18]} 28. Bxh4 {[%emt 0:02:11]} Rxd1+ {[%emt 0:01:19]} 29. Qxd1 {[%emt 0:04:13]} Bc5+ {[%emt 0:00:40]} 30. Kh2 {[%emt 0:01:41]} Ne3 {[%emt 0:02:28]} 31. Qd3 {[%emt 0:01:29]} Nxf5 {[%emt 0:03:22]} 32. exf5 {[%emt 0:00:09]} Re8 {[%emt 0:00:49]} 33. Re1 {[%emt 0:01:46]} Qxa4 {[%emt 0:07:19]} 34. f6+ {[%emt 0:00:45]} Kh8 {[%emt 0:00:12]} 35. Bg3 Re6 {[%emt 0:10:44]} 36. Re4 {[%emt 0:04:17]} Qe8 {[%emt 0:02:25]} 37. Qd5 {[%emt 0:04:00]} Qc6 {[%emt 0:00:30]} 38. Qd2 {[%emt 0:04:36]} Kh7 {[%emt 0:01:17]} 39. Bxe5 {[%emt 0:04:11]} Bd6 {[%emt 0:03:33]} 40. Qd3 {[%emt 0:00:00]} Kh8 {[%emt 0:00:00]} 41. f4 {[%emt 0:13:52]} a4 {[%emt 0:09:01]} 42. Rc4 {[%emt 0:00:41]} Qd7 {[%emt 0:01:39]} 43. Qg3 {[%emt 0:01:54]} Bf8 {[%emt 0:01:05]} 44. Rc7 {[%emt 0:02:07]} Qd1 {[%emt 0:01:03]} 45. Qh3 {[%emt 0:03:35]} Kg8 {[%emt 0:01:50]} 46. Rc8 {[%emt 0:01:28]} h5 {[%emt 0:00:14]} 47. Qh4 {[%emt 0:08:28]} Qg4 {[%emt 0:04:19]} 48. Qf2 {[%emt 0:00:48]} Rxe5 {[%emt 0:01:05]} 49. Rxf8+ {[%emt 0:00:12]} Kxf8 {[%emt 0:00:19]} 50. fxe5 {[%emt 0:00:08]} Qc4 {[%emt 0:09:37]} 51. Qd2 {[%emt 0:00:51]} Qh4+ {[%emt 0:05:35]} 52. Kg1 {[%emt 0:00:10]} Kg8 {[%emt 0:00:50]} 53. Qd8+ {[%emt 0:02:36]} Kh7 {[%emt 0:01:43]} 54. Qd3+ {[%emt 0:00:09]} Kh6 {[%emt 0:05:13]} 55. Qd6 {[%emt 0:12:27]} Qc4 {[%emt 0:02:34]} 56. Qd2+ {[%emt 0:03:35]} Kg6 {[%emt 0:00:29]} 57. Qc2+ {[%emt 0:00:16]} Kg5 {[%emt 0:00:25]} 58. e6 {[%emt 0:01:45]} Qxe6 {[%emt 0:08:39]} 59. Qxa4 {[%emt 0:00:09]} Qe1+ {[%emt 0:02:54]} 60. Kh2 {[%emt 0:00:10]} Qh4+ {[%emt 0:00:08]} 61. Qxh4+ {[%emt 0:00:17]} Kxh4 {[%emt 0:00:58]} 62. Kg1 {[%emt 0:01:02]} Kg5 {[%emt 0:01:21]} 63. Kf2 {[%emt 0:00:07]} Kxf6 {[%emt 0:00:07]} 64. Ke3 {[%emt 0:00:03]} Ke5 {[%emt 0:00:16]} 65. Kd3 {[%emt 0:00:05]} b5 {[%emt 0:00:58]} 66. g3 {[%emt 0:00:12]} Kd5 {[%emt 0:01:09]} 67. Ke3 {[%emt 0:00:08]} Ke5 {[%emt 0:01:16]} 68. Kd3 {[%emt 0:00:08]} Kf5 {[%emt 0:00:25]} 69. Ke3 {[%emt 0:00:07]} Kg4 {[%emt 0:00:21]} 70. Kf2 {[%emt 0:00:07]} f5 0-1

[Event "58th Akiba Rubinstein C 2022"]
[Site "Polanica-Zdroj"]
[Date "2022.08.15"]
[Round "3.7"]
[White "Uscinski, Marek"]
[Black "Fikus, Zygmunt"]
[Result "1/2-1/2"]
[ECO "D03"]
[WhiteElo "1824"]
[BlackElo "1891"]
[Annotator "NA RC"]
[PlyCount "37"]
[EventDate "2022.08.13"]
[EventCountry "POL"]
[SourceTitle "playchess.com"]
[Source "ChessBase"]
[SourceQuality "1"]
[TimeControl "40/5400+30:1800+30"]

1. d4 {[%emt 0:00:04]} Nf6 {[%emt 0:00:12]} 2. Bg5 {[%emt 0:00:09]} d5 {[%emt 0:01:17]} 3. Nf3 {[%emt 0:00:10]} c6 {[%emt 0:01:47]} 4. e3 {[%emt 0:01:47]} Ne4 {[%emt 0:02:27]} 5. Bf4 {[%emt 0:00:08]} Nd7 {[%emt 0:01:46]} 6. Nbd2 {[%emt 0:01:23]} Ndf6 {[%emt 0:00:21]} 7. h3 {[%emt 0:02:15]} Qb6 {[%emt 0:05:02]} 8. Qc1 {[%emt 0:03:02]} e6 {[%emt 0:02:53]} 9. Bd3 {[%emt 0:05:17]} Be7 {[%emt 0:03:47]} 10. O-O {[%emt 0:01:12]} O-O {[%emt 0:00:45]} 11. c4 {[%emt 0:01:45]} c5 {[%emt 0:03:27]} 12. Qc2 {[%emt 0:04:21]} Nxd2 $11 {[%emt 0:03:46]} 13. Qxd2 {[%emt 0:00:17]} cxd4 14. exd4 {[%emt 0:00:54]} dxc4 {[%emt 0:05:01]} 15. Bxc4 {[%emt 0:00:39]} Rd8 {[%emt 0:02:06]} 16. Qe2 {[%emt 0:03:15]} Nd5 {[%emt 0:02:30]} 17. Be5 {[%emt 0:00:57]} f6 {[%emt 0:02:26]} 18. Bg3 {[%emt 0:00:30]} Bd6 {[%emt 0:02:19]} 19. Bxd5 1/2-1/2

[Event "58th Akiba Rubinstein C 2022"]
[Site "Polanica-Zdroj"]
[Date "2022.08.15"]
[Round "3.9"]
[White "Bukowska, Katarzyna"]
[Black "Gromada, Andrzej"]
[Result "0-1"]
[ECO "C05"]
[WhiteElo "1842"]
[BlackElo "1680"]
[Annotator "NA RC"]
[PlyCount "34"]
[EventDate "2022.08.13"]
[EventCountry "POL"]
[SourceTitle "playchess.com"]
[Source "ChessBase"]
[SourceQuality "1"]
[TimeControl "40/5400+30:1800+30"]

1. e4 {[%emt 0:00:05]} e6 {[%emt 0:00:20]} 2. d4 {[%emt 0:00:15]} d5 {[%emt 0:00:08]} 3. Nd2 {[%emt 0:00:17]} Nf6 {[%emt 0:00:30]} 4. e5 {[%emt 0:00:32]} Nfd7 {[%emt 0:00:27]} 5. Bd3 {[%emt 0:00:30]} c5 {[%emt 0:00:21]} 6. c3 {[%emt 0:00:19]} Nc6 {[%emt 0:00:13]} 7. Ngf3 {[%emt 0:02:11]} Qb6 {[%emt 0:04:58]} 8. O-O {[%emt 0:00:34]} cxd4 {[%emt 0:01:31]} 9. cxd4 $11 {[%emt 0:00:31]} Nxd4 {[%emt 0:02:23]} 10. Nxd4 {[%emt 0:00:16]} Qxd4 {[%emt 0:00:08]} 11. Nf3 {[%emt 0:00:14]} Qb6 {[%emt 0:01:06]} 12. Qa4 {[%emt 0:02:31]} Qb4 {[%emt 0:05:14]} 13. Qc2 {[%emt 0:00:27]} g6 {[%emt 0:05:15]} 14. Bd2 {[%emt 0:09:50]} Qb6 {[%emt 0:05:22]} 15. Qa4 Qxb2 {[%emt 0:06:46]} 16. Rab1 {[%emt 0:12:11]} Qa3 {[%emt 0:00:14]} 17. Qf4 {[%emt 0:00:49]} Qxd3 {[%emt 0:00:50]} 0-1

[Event "58th Akiba Rubinstein C 2022"]
[Site "Polanica-Zdroj"]
[Date "2022.08.15"]
[Round "3.10"]
[White "Wasik, Jozef"]
[Black "Szylko, Waldemar"]
[Result "0-1"]
[ECO "A04"]
[WhiteElo "1631"]
[BlackElo "1911"]
[Annotator "NA RC"]
[PlyCount "65"]
[EventDate "2022.08.13"]
[EventCountry "POL"]
[SourceTitle "playchess.com"]
[Source "ChessBase"]
[SourceQuality "1"]
[TimeControl "40/5400+30:1800+30"]

1. Nf3 {[%emt 0:00:08]} c6 {[%emt 0:00:05]} 2. g3 {[%emt 0:00:15]} f5 {[%emt 0:00:05]} 3. Bg2 {[%emt 0:00:20]} Nf6 {[%emt 0:00:07]} 4. O-O {[%emt 0:00:24]} e6 {[%emt 0:00:03]} 5. d3 {[%emt 0:00:27]} d5 {[%emt 0:00:07]} 6. Nbd2 {[%emt 0:00:20]} Be7 {[%emt 0:00:15]} 7. e4 {[%emt 0:01:56]} O-O {[%emt 0:00:21]} 8. exd5 {[%emt 0:02:39]} exd5 {[%emt 0:00:09]} 9. b3 {[%emt 0:00:53]} f4 {[%emt 0:00:24]} 10. Bb2 {[%emt 0:01:40]} fxg3 {[%emt 0:00:24]} 11. fxg3 {[%emt 0:00:55]} Bg4 {[%emt 0:00:28]} 12. h3 {[%emt 0:01:04]} Bh5 {[%emt 0:00:14]} 13. g4 {[%emt 0:01:14]} Bg6 {[%emt 0:01:28]} 14. Ne5 {[%emt 0:00:41]} Be8 {[%emt 0:00:53]} 15. g5 {[%emt 0:09:35]} Nh5 {[%emt 0:01:25]} 16. Rxf8+ {[%emt 0:00:33]} Bxf8 {[%emt 0:00:14]} 17. Qg4 {[%emt 0:03:27]} Nd7 {[%emt 0:04:01]} 18. Ndf3 {[%emt 0:16:36]} Nxe5 {[%emt 0:03:31]} 19. Nxe5 {[%emt 0:17:28]} ({Much weaker is} 19. Bxe5 g6 $11) 19... Qd6 $16 {[%emt 0:02:35]} (19... Bc5+ $14 20. d4 Bd6) 20. Qh4 {[%emt 0:17:17]} Qc5+ {[%emt 0:05:25]} 21. Bd4 {[%emt 0:07:35]} Qd6 {[%emt 0:02:36]} 22. Bf3 {[%emt 0:02:03]} c5 {[%emt 0:02:19]} 23. Bb2 {[%emt 0:06:44]} d4 {[%emt 0:02:02]} 24. Re1 {[%emt 0:01:12]} g6 {[%emt 0:00:59]} 25. Bxb7 {[%emt 0:01:41]} Rb8 {[%emt 0:00:53]} 26. Bf3 {[%emt 0:00:40]} Bg7 {[%emt 0:00:59]} 27. Qe4 {[%emt 0:02:58]} Rd8 {[%emt 0:01:17]} 28. Bxh5 {[%emt 0:01:02]} gxh5 {[%emt 0:00:30]} 29. Bc1 {[%emt 0:00:16]} Qe6 {[%emt 0:02:25]} 30. Kh2 {[%emt 0:01:05]} Bb5 {[%emt 0:03:28]} 31. Bf4 {[%emt 0:09:01]} Be8 32. Bc1 Bb5 33. Bf4 0-1

[Event "58th Akiba Rubinstein C 2022"]
[Site "Polanica-Zdroj"]
[Date "2022.08.15"]
[Round "3.11"]
[White "Mazalon, Mariusz"]
[Black "Muc, Zbigniew"]
[Result "1-0"]
[ECO "A46"]
[WhiteElo "1994"]
[BlackElo "1580"]
[Annotator "NA RC"]
[PlyCount "83"]
[EventDate "2022.08.13"]
[EventCountry "POL"]
[SourceTitle "playchess.com"]
[Source "ChessBase"]
[SourceQuality "1"]
[TimeControl "40/5400+30:1800+30"]

1. d4 {[%emt 0:00:37]} Nf6 {[%emt 0:00:39]} 2. Nf3 {[%emt 0:00:00]} d5 {[%emt 0:00:27]} 3. c4 {[%emt 0:00:14]} e6 {[%emt 0:00:21]} 4. g3 {[%emt 0:00:06]} c5 {[%emt 0:06:01]} 5. cxd5 {[%emt 0:01:06]} exd5 {[%emt 0:00:58]} 6. Bg2 {[%emt 0:00:07]} Nc6 {[%emt 0:01:40]} 7. O-O {[%emt 0:00:20]} Bg4 {[%emt 0:17:38]} 8. dxc5 $11 {[%emt 0:08:17]} (8. Bg5 $14) 8... Bxc5 {[%emt 0:02:20]} 9. a3 {[%emt 0:00:08]} a5 {[%emt 0:01:14]} 10. Nc3 {[%emt 0:00:18]} O-O {[%emt 0:01:59]} 11. Bg5 {[%emt 0:02:25]} d4 {[%emt 0:03:50]} 12. Ne4 {[%emt 0:09:15]} Be7 {[%emt 0:00:32]} 13. Bxf6 {[%emt 0:00:09]} Bxf6 {[%emt 0:00:28]} 14. Qb3 {[%emt 0:00:07]} Rb8 {[%emt 0:01:47]} 15. Rfd1 {[%emt 0:03:56]} Re8 {[%emt 0:02:58]} 16. Nxf6+ {[%emt 0:00:51]} Qxf6 {[%emt 0:00:24]} 17. Rd2 {[%emt 0:00:06]} Be6 {[%emt 0:10:49]} 18. Qb5 {[%emt 0:07:12]} Red8 {[%emt 0:02:43]} 19. Rad1 {[%emt 0:01:35]} Rd5 {[%emt 0:07:24]} 20. Qa4 {[%emt 0:04:28]} Rc5 {[%emt 0:04:37]} 21. Ra1 {[%emt 0:06:38]} b5 {[%emt 0:00:31]} 22. Qd1 {[%emt 0:00:26]} Rd8 {[%emt 0:00:46]} 23. Rc1 {[%emt 0:05:23]} Rxc1 {[%emt 0:05:24]} 24. Qxc1 {[%emt 0:00:49]} Bc4 {[%emt 0:01:02]} 25. Qc2 {[%emt 0:04:37]} a4 {[%emt 0:01:31]} 26. Qe4 {[%emt 0:04:59]} Bd5 {[%emt 0:00:41]} 27. Qf4 {[%emt 0:02:55]} Qxf4 {[%emt 0:01:36]} 28. gxf4 {[%emt 0:00:03]} Be4 {[%emt 0:07:52]} 29. Ne5 {[%emt 0:03:48]} Bxg2 {[%emt 0:00:38]} 30. Kxg2 {[%emt 0:00:03]} Na5 {[%emt 0:04:52]} 31. e3 {[%emt 0:17:07]} f6 {[%emt 0:02:09]} 32. Nf3 {[%emt 0:00:22]} Nb3 {[%emt 0:01:54]} 33. Rd3 {[%emt 0:01:37]} Kf7 {[%emt 0:03:14]} 34. Nxd4 {[%emt 0:00:48]} Nxd4 {[%emt 0:01:21]} 35. Rxd4 {[%emt 0:01:25]} Ke7 {[%emt 0:05:00]} 36. Rxd8 {[%emt 0:01:16]} Kxd8 {[%emt 0:00:03]} 37. Kf3 {[%emt 0:00:11]} Kc7 {[%emt 0:00:48]} 38. Ke4 {[%emt 0:00:13]} Kc6 {[%emt 0:00:37]} 39. Kd4 {[%emt 0:00:10]} Kd6 {[%emt 0:00:34]} 40. e4 {[%emt 0:00:00]} Kc6 {[%emt 0:00:00]} 41. f5 {[%emt 0:01:17]} Kd6 {[%emt 0:04:30]} 42. f4 {[%emt 0:03:43]} 1-0

[Event "58th Akiba Rubinstein C 2022"]
[Site "Polanica-Zdroj"]
[Date "2022.08.15"]
[Round "3.12"]
[White "Gregulski, Zbigniew"]
[Black "Wielgus, Jerzy"]
[Result "1/2-1/2"]
[ECO "A52"]
[WhiteElo "1591"]
[BlackElo "1832"]
[Annotator "NA RC"]
[PlyCount "59"]
[EventDate "2022.08.13"]
[EventCountry "POL"]
[SourceTitle "playchess.com"]
[Source "ChessBase"]
[SourceQuality "1"]
[TimeControl "40/5400+30:1800+30"]

1. d4 {[%emt 0:00:07]} Nf6 {[%emt 0:00:41]} 2. c4 {[%emt 0:00:38]} e5 {[%emt 0:01:22]} 3. dxe5 {[%emt 0:00:12]} Ng4 {[%emt 0:00:13]} 4. Nf3 {[%emt 0:00:08]} Bc5 {[%emt 0:00:55]} 5. e3 {[%emt 0:00:14]} Qe7 {[%emt 0:00:58]} 6. Bd2 {[%emt 0:02:21]} Nc6 {[%emt 0:00:38]} 7. Be2 {[%emt 0:01:39]} O-O {[%emt 0:00:52]} 8. O-O {[%emt 0:00:26]} Ngxe5 {[%emt 0:00:17]} 9. Nc3 {[%emt 0:01:30]} d6 {[%emt 0:03:10]} 10. Nd5 {[%emt 0:01:52]} Qd8 {[%emt 0:00:26]} 11. Bc3 {[%emt 0:00:56]} a5 {[%emt 0:01:26]} 12. b3 {[%emt 0:05:45]} Nxf3+ {[%emt 0:03:20]} 13. Bxf3 {[%emt 0:00:10]} Ne5 {[%emt 0:00:18]} 14. Be2 {[%emt 0:01:35]} c6 {[%emt 0:02:04]} 15. Nf4 {[%emt 0:00:45]} Bf5 {[%emt 0:06:03]} 16. Nd3 {[%emt 0:00:55]} Nxd3 {[%emt 0:05:14]} 17. Bxd3 {[%emt 0:00:09]} Bxd3 {[%emt 0:02:34]} 18. Qxd3 {[%emt 0:00:13]} Qg5 $11 {[%emt 0:00:16]} 19. a4 {[%emt 0:01:15]} Rfd8 {[%emt 0:00:48]} 20. Rad1 {[%emt 0:00:48]} d5 {[%emt 0:00:19]} 21. Qe2 {[%emt 0:00:57]} b6 {[%emt 0:01:41]} 22. g3 {[%emt 0:03:17]} h5 {[%emt 0:01:32]} 23. h4 {[%emt 0:00:15]} Qf5 {[%emt 0:00:47]} 24. cxd5 {[%emt 0:02:01]} cxd5 {[%emt 0:00:38]} 25. Rd3 {[%emt 0:01:06]} Rd6 {[%emt 0:00:25]} 26. Rfd1 {[%emt 0:00:37]} Rad8 {[%emt 0:00:30]} 27. Kg2 {[%emt 0:01:18]} Rg6 {[%emt 0:01:05]} 28. Qf3 {[%emt 0:00:37]} Rgd6 29. Qe2 Rg6 30. Qf3 1/2-1/2

[Event "58th Akiba Rubinstein C 2022"]
[Site "Polanica-Zdroj"]
[Date "2022.08.15"]
[Round "3.13"]
[White "Chmielewski, Miroslaw"]
[Black "Dembowski, Andrzej"]
[Result "1-0"]
[ECO "B40"]
[WhiteElo "1571"]
[BlackElo "1810"]
[Annotator "NA RC"]
[PlyCount "93"]
[EventDate "2022.08.13"]
[EventCountry "POL"]
[SourceTitle "playchess.com"]
[Source "ChessBase"]
[SourceQuality "1"]
[TimeControl "40/5400+30:1800+30"]

1. e4 {[%emt 0:01:20]} c5 {[%emt 0:00:12]} 2. Nf3 {[%emt 0:01:04]} e6 {[%emt 0:00:08]} 3. c3 {[%emt 0:02:23]} d6 {[%emt 0:00:47]} 4. d4 {[%emt 0:01:15]} cxd4 {[%emt 0:00:19]} 5. Nxd4 {[%emt 0:01:08]} Nf6 {[%emt 0:01:00]} 6. Bb5+ {[%emt 0:04:15]} Bd7 {[%emt 0:00:31]} 7. Bxd7+ {[%emt 0:00:41]} Nbxd7 {[%emt 0:00:41]} 8. Qe2 {[%emt 0:00:22]} a6 {[%emt 0:01:16]} 9. Bg5 {[%emt 0:02:05]} Be7 {[%emt 0:02:03]} 10. Nd2 {[%emt 0:03:41]} O-O {[%emt 0:00:35]} 11. O-O {[%emt 0:01:13]} Qa5 {[%emt 0:00:47]} 12. Be3 {[%emt 0:01:47]} Rac8 {[%emt 0:02:14]} 13. N4b3 {[%emt 0:07:37]} Qc7 {[%emt 0:00:19]} 14. Bf4 {[%emt 0:01:52]} Rfd8 {[%emt 0:03:28]} 15. Rfe1 {[%emt 0:01:42]} e5 {[%emt 0:04:44]} 16. Bg3 {[%emt 0:04:05]} Nf8 {[%emt 0:01:12]} 17. Rad1 {[%emt 0:04:27]} Ne6 {[%emt 0:00:17]} 18. Nc1 {[%emt 0:01:05]} Qc6 {[%emt 0:03:25]} 19. Nd3 {[%emt 0:01:25]} Qa4 {[%emt 0:03:47]} 20. h3 {[%emt 0:08:30]} Qb5 {[%emt 0:01:19]} 21. Nf1 Qc4 {[%emt 0:01:59]} 22. a3 {[%emt 0:02:54]} Ng5 {[%emt 0:04:03]} 23. f3 {[%emt 0:01:31]} Ne6 {[%emt 0:02:49]} 24. Ne3 {[%emt 0:00:34]} Qc7 {[%emt 0:01:11]} 25. Nb4 {[%emt 0:08:02]} Bf8 {[%emt 0:05:26]} 26. Nbd5 {[%emt 0:01:17]} Nxd5 {[%emt 0:01:23]} 27. Nxd5 {[%emt 0:00:36]} Qc6 {[%emt 0:01:07]} 28. Bf2 {[%emt 0:07:03]} f6 {[%emt 0:08:29]} 29. g3 {[%emt 0:00:40]} Kf7 {[%emt 0:00:42]} 30. Kh2 {[%emt 0:02:05]} g6 {[%emt 0:00:16]} 31. Be3 {[%emt 0:00:47]} Nc5 {[%emt 0:09:01]} 32. h4 {[%emt 0:04:05]} Ne6 {[%emt 0:03:20]} 33. Qg2 {[%emt 0:02:05]} Ng7 {[%emt 0:10:06]} 34. g4 {[%emt 0:03:18]} Qb5 {[%emt 0:04:49]} 35. Rd2 {[%emt 0:03:55]} Ne6 {[%emt 0:00:44]} 36. g5 {[%emt 0:03:22]} fxg5 {[%emt 0:02:22]} 37. Bxg5 {[%emt 0:00:41]} Re8 {[%emt 0:00:44]} 38. Nf6 {[%emt 0:01:59]} h6 {[%emt 0:03:02]} 39. Nxe8 {[%emt 0:00:40]} hxg5 {[%emt 0:01:13]} 40. Nxd6+ {[%emt 0:00:00]} Bxd6 {[%emt 0:00:00]} 41. Rxd6 {[%emt 0:01:08]} Rh8 {[%emt 0:00:39]} 42. Qd2 {[%emt 0:16:19]} Rxh4+ {[%emt 0:00:30]} 43. Kg1 {[%emt 0:00:13]} Qc5+ {[%emt 0:00:55]} 44. Re3 {[%emt 0:00:10]} g4 {[%emt 0:03:09]} 45. b4 {[%emt 0:03:51]} Qa7 {[%emt 0:02:13]} 46. Rxe6 {[%emt 0:04:04]} Kxe6 47. Kg2 1-0

[Event "58th Akiba Rubinstein C 2022"]
[Site "Polanica-Zdroj"]
[Date "2022.08.15"]
[Round "3.14"]
[White "Bobrowski, Piotr"]
[Black "Janocha, Jan"]
[Result "1-0"]
[ECO "A13"]
[WhiteElo "1764"]
[BlackElo "1547"]
[Annotator "NA RC"]
[PlyCount "91"]
[EventDate "2022.08.13"]
[EventCountry "POL"]
[SourceTitle "playchess.com"]
[Source "ChessBase"]
[SourceQuality "1"]
[TimeControl "40/5400+30:1800+30"]

1. c4 {[%emt 0:00:30]} e6 2. d4 {[%emt 1:31:00]} d5 {[%emt 1:31:30]} 3. e3 {[%emt 0:00:30]} Nf6 {[%emt 0:00:30]} 4. Nc3 {[%emt 0:00:30]} b6 {[%emt 0:00:30]} 5. Bd2 {[%emt 0:00:30]} Bb7 {[%emt 0:00:30]} 6. Nf3 {[%emt 0:00:30]} Bd6 7. a3 {[%emt 0:00:30]} O-O {[%emt 0:01:00]} 8. b4 {[%emt 0:00:00]} c5 {[%emt 0:00:00]} 9. Qb3 {[%emt 0:00:00]} dxc4 {[%emt 0:00:00]} 10. Bxc4 {[%emt 0:00:00]} cxd4 {[%emt 0:00:00]} 11. exd4 {[%emt 0:00:00]} Nc6 {[%emt 0:00:00]} 12. O-O {[%emt 0:00:00]} a5 {[%emt 0:00:00]} 13. b5 {[%emt 0:00:00]} Ne7 {[%emt 0:00:00]} 14. Bg5 {[%emt 0:00:00]} Ng6 {[%emt 0:00:00]} 15. d5 {[%emt 0:00:00]} exd5 {[%emt 0:00:00]} 16. Nxd5 {[%emt 0:00:00]} Bxd5 {[%emt 0:00:00]} 17. Bxd5 {[%emt 0:00:00]} Bxh2+ {[%emt 0:00:00]} 18. Kxh2 {[%emt 0:00:00]} Qxd5 {[%emt 0:00:00]} 19. Qxd5 {[%emt 0:00:00]} Nxd5 {[%emt 0:00:00]} 20. a4 {[%emt 0:00:00]} f6 {[%emt 0:00:00]} 21. Bd2 {[%emt 0:00:00]} Rfe8 {[%emt 0:00:00]} 22. Rfd1 {[%emt 0:00:00]} Nge7 {[%emt 0:00:00]} 23. Rac1 {[%emt 0:00:00]} Rac8 {[%emt 0:00:00]} 24. Nd4 {[%emt 0:00:00]} Rxc1 {[%emt 0:00:00]} 25. Rxc1 {[%emt 0:00:00]} Rc8 {[%emt 0:00:00]} 26. Nc6 {[%emt 0:00:00]} Kf7 {[%emt 0:00:00]} 27. Kg3 {[%emt 0:00:00]} g6 {[%emt 0:00:00]} 28. Kf3 {[%emt 0:00:00]} Ke8 {[%emt 0:00:00]} 29. Ke4 {[%emt 0:00:00]} Kd7 {[%emt 0:00:00]} 30. Nxe7 {[%emt 0:00:00]} Nxe7 {[%emt 0:00:00]} 31. Rxc8 {[%emt 0:00:00]} Nxc8 {[%emt 0:00:00]} 32. Be3 {[%emt 0:00:00]} Ke6 33. Kd4 Ne7 {[%emt 0:00:00]} 34. Bf4 {[%emt 0:00:00]} Nd5 {[%emt 0:00:00]} 35. Bb8 {[%emt 0:00:00]} g5 {[%emt 0:00:00]} 36. g4 {[%emt 0:00:00]} h6 {[%emt 0:00:00]} 37. f3 {[%emt 0:00:00]} Ne7 {[%emt 0:00:00]} 38. Bc7 {[%emt 0:00:00]} Nc8 {[%emt 0:00:00]} 39. Bd8 {[%emt 0:00:00]} f5 {[%emt 0:00:00]} 40. Bc7 {[%emt 0:00:00]} fxg4 {[%emt 0:00:00]} 41. fxg4 {[%emt 0:00:00]} Kd7 {[%emt 0:00:00]} 42. Be5 {[%emt 0:00:00]} Ne7 {[%emt 0:00:00]} 43. Bg7 {[%emt 0:00:00]} Ng8 {[%emt 0:00:00]} 44. Be5 Ne7 45. Bg7 Ng8 46. Kd5 1-0

[Event "58th Akiba Rubinstein C 2022"]
[Site "Polanica-Zdroj"]
[Date "2022.08.16"]
[Round "4.1"]
[White "Kwiecien, Zbigniew"]
[Black "Marusenko, Petr"]
[Result "1-0"]
[ECO "A06"]
[WhiteElo "1937"]
[BlackElo "2075"]
[Annotator "NA RC"]
[PlyCount "66"]
[EventDate "2022.08.13"]
[EventCountry "POL"]
[SourceTitle "playchess.com"]
[Source "ChessBase"]
[SourceQuality "1"]
[TimeControl "40/5400+30:1800+30"]

1. Nf3 {[%emt 0:00:13]} d5 {[%emt 0:00:07]} 2. g3 {[%emt 0:00:07]} e6 {[%emt 0:00:05]} 3. Bg2 {[%emt 0:00:09]} c5 {[%emt 0:00:04]} 4. O-O {[%emt 0:00:14]} Nc6 {[%emt 0:00:06]} 5. b3 {[%emt 0:00:27]} Nf6 {[%emt 0:00:17]} 6. Bb2 {[%emt 0:00:14]} Be7 {[%emt 0:00:07]} 7. d3 {[%emt 0:00:20]} O-O {[%emt 0:00:16]} 8. Nbd2 {[%emt 0:00:50]} d4 {[%emt 0:00:44]} 9. e4 {[%emt 0:00:25]} dxe3 {[%emt 0:02:50]} 10. fxe3 {[%emt 0:00:03]} Nd5 {[%emt 0:00:11]} 11. Qe2 {[%emt 0:00:54]} Bf6 {[%emt 0:00:08]} 12. Bxf6 {[%emt 0:00:56]} Nxf6 {[%emt 0:00:11]} 13. Nc4 {[%emt 0:04:32]} Nd5 {[%emt 0:06:38]} 14. Qd2 {[%emt 0:20:57]} Qc7 {[%emt 0:03:27]} 15. e4 {[%emt 0:01:19]} Nb6 {[%emt 0:00:15]} 16. Ne3 {[%emt 0:04:03]} Nd4 {[%emt 0:01:07]} 17. Nh4 {[%emt 0:01:47]} Nd7 {[%emt 0:02:48]} 18. c3 {[%emt 0:00:55]} Nc6 {[%emt 0:00:06]} 19. Qe2 {[%emt 0:06:05]} Nde5 {[%emt 0:01:03]} 20. Rad1 {[%emt 0:01:42]} Rd8 {[%emt 0:03:54]} 21. Nf3 {[%emt 0:06:05]} Nxf3+ {[%emt 0:01:57]} 22. Bxf3 {[%emt 0:00:06]} b6 {[%emt 0:02:45]} 23. Qg2 {[%emt 0:09:33]} Ne5 {[%emt 0:00:30]} 24. Be2 {[%emt 0:01:15]} Bb7 {[%emt 0:07:56]} 25. d4 {[%emt 0:03:29]} cxd4 {[%emt 0:00:15]} 26. cxd4 {[%emt 0:00:02]} Qc3 27. Qf2 {[%emt 0:02:20]} Rxd4 {[%emt 0:07:54]} 28. Rc1 {[%emt 0:06:07]} Qb2 {[%emt 0:02:28]} 29. Rc2 {[%emt 0:00:29]} Qa3 {[%emt 0:00:18]} 30. Nc4 {[%emt 0:02:50]} Rxc4 {[%emt 0:02:28]} 31. Bxc4 {[%emt 0:01:01]} Bxe4 {[%emt 0:01:30]} 32. Rc3 {[%emt 0:02:32]} Bf5 {[%emt 0:06:20]} 33. Qd4 {[%emt 0:04:31]} Nxc4 1-0